bitfinex/quotes_BTCUSD_20250224
["timestamp","ask_amount","ask_price","bid_price","bid_amount"]
[1740434307022,0.75283554,94251.0,94250.0,6e-07]
[1740434307264,0.75668219,94251.0,94250.0,6e-07]
[1740434308132,0.76268219,94251.0,94250.0,6e-07]
[1740434308327,0.77463294,94251.0,94250.0,6e-07]
[1740434308475,0.84620719,94251.0,94250.0,6e-07]
[1740434310782,0.92750719,94251.0,94250.0,6e-07]
[1740434311296,0.61835819,94251.0,94250.0,6e-07]
[1740434311907,0.55816756,94251.0,94250.0,6e-07]
[1740434312116,0.71731656,94251.0,94250.0,6e-07]
[1740434318547,0.78601656,94251.0,94250.0,6e-07]
[1740434320632,0.79541656,94251.0,94250.0,6e-07]
[1740434323145,0.79541656,94251.0,94238.0,0.0016974]
[1740434323146,0.32370385,94243.0,94242.0,0.0016588]
[1740434323362,1.13727154,94243.0,94242.0,0.00178782]
[1740434323629,1.13727154,94243.0,94223.0,0.0796]
[1740434323630,0.16454085,94242.0,94223.0,0.0796]
[1740434323866,0.16454085,94242.0,94220.0,0.0451]
[1740434323867,0.17374085,94221.0,94220.0,0.0451]
[1740434324098,0.32374085,94221.0,94220.0,0.0451]
[1740434324318,0.32757847,94221.0,94220.0,0.0451]
[1740434324828,0.17375285,94214.0,94213.0,0.0793]
[1740434325312,0.19594288,94214.0,94213.0,0.0793]
[1740434325509,0.19926274,94214.0,94213.0,0.0793]
[1740434326057,0.20821349,94214.0,94213.0,0.0797303]
[1740434326283,0.20821349,94214.0,94213.0,0.0807303]
[1740434327694,0.20821349,94214.0,94213.0,0.0014303]
[1740434327908,0.20721349,94214.0,94213.0,0.0014303]
[1740434328129,0.20821349,94214.0,94213.0,0.0014303]
[1740434328362,0.20821349,94214.0,94213.0,0.0004303]
[1740434328584,0.159225,94206.0,94205.0,0.0016988]
[1740434328813,0.17376585,94206.0,94205.0,0.0016988]
[1740434328987,0.17759065,94206.0,94205.0,0.0016988]
[1740434329446,0.32759065,94206.0,94205.0,0.0016988]
[1740434329648,0.53288203,94206.0,94205.0,0.0016988]
[1740434330082,0.54083278,94206.0,94205.0,0.0016988]
[1740434330855,0.01177555,94206.0,94186.0,0.0818]
[1740434331051,0.16454085,94204.0,94186.0,0.18444569]
[1740434331270,0.01454085,94200.0,94186.0,0.18444569]
[1740434331481,0.01454085,94200.0,94188.0,0.159255]
[1740434331659,0.01454085,94200.0,94189.0,0.0476]
[1740434331864,0.01454085,94198.0,94189.0,0.0476]
[1740434332523,0.01454085,94196.0,94189.0,0.0476]
[1740434332932,0.01454085,94193.0,94189.0,0.0476]
[1740434333139,0.01454085,94194.0,94189.0,0.0476]
[1740434333558,0.00382235,94193.0,94190.0,0.212336]
[1740434333783,0.00382235,94193.0,94192.0,0.204849]
[1740434333993,0.01127061,94197.0,94196.0,0.159242]
[1740434334199,0.00795075,94197.0,94196.0,0.38298769]
[1740434334830,0.16719075,94197.0,94196.0,0.1211]
[1740434335073,0.01177226,94197.0,94196.0,0.1211]
[1740434335278,0.01177226,94197.0,94196.0,0.1201]
[1740434335712,0.16819075,94197.0,94196.0,0.1201]
[1740434335914,0.17201249,94197.0,94196.0,0.1201]
[1740434336123,0.17533733,94197.0,94196.0,0.1201]
[1740434337706,0.17533733,94197.0,94196.0,0.1209502]
[1740434340588,0.01609733,94197.0,94196.0,0.1209502]
[1740434340791,0.17533733,94197.0,94196.0,0.1209502]
[1740434340999,0.01609733,94197.0,94196.0,0.1209502]
[1740434341210,0.17533733,94197.0,94196.0,0.1209502]
[1740434341640,0.17201249,94197.0,94196.0,0.1209502]
[1740434341853,0.01277249,94197.0,94196.0,0.1209502]
[1740434342768,0.00895075,94197.0,94196.0,0.2801922]
[1740434342986,0.01276775,94197.0,94196.0,0.1209502]
[1740434343288,0.00895075,94197.0,94196.0,0.1209502]
[1740434343697,0.01276775,94197.0,94196.0,0.2801922]
[1740434343905,0.00895075,94197.0,94196.0,0.2801922]
[1740434344118,0.00895075,94197.0,94196.0,0.1209502]
[1740434344333,0.01276775,94197.0,94196.0,0.1209502]
[1740434344548,0.01276775,94197.0,94196.0,0.2801922]
[1740434344753,0.00895075,94197.0,94196.0,0.2801922]
[1740434344977,0.01276775,94197.0,94196.0,0.2801922]
[1740434345394,0.01276775,94197.0,94196.0,0.38283789]
[1740434345608,0.00895075,94197.0,94196.0,0.38283789]
[1740434346309,0.16819075,94197.0,94196.0,0.1209502]
[1740434346563,0.00795075,94197.0,94196.0,0.1209502]
[1740434346823,0.01176616,94197.0,94196.0,0.2801922]
[1740434347055,0.01176616,94197.0,94196.0,0.1209502]
[1740434347296,0.01276616,94197.0,94196.0,0.38383789]
[1740434347531,0.01376616,94197.0,94196.0,0.38383789]
[1740434347742,0.00895075,94197.0,94196.0,0.38383789]
[1740434348464,0.00795075,94197.0,94196.0,0.38283789]
[1740434348765,0.00795075,94197.0,94196.0,0.38483789]
[1740434349228,0.00795075,94197.0,94196.0,0.38283789]
[1740434349675,0.00965195,94197.0,94196.0,0.38583789]
[1740434349899,0.16889195,94197.0,94196.0,0.1209502]
[1740434350121,0.3715528,94197.0,94196.0,0.0038502]
[1740434350394,0.33724821,94197.0,94196.0,2e-07]
[1740434350630,0.74574821,94197.0,94196.0,2e-07]
[1740434351287,0.16454085,94196.0,94175.0,0.0783]
[1740434351531,0.01454085,94183.0,94175.0,0.0783]
[1740434352015,0.01454085,94183.0,94175.0,0.237577]
[1740434352249,0.01454085,94181.0,94175.0,0.0783]
[1740434352485,0.01454085,94181.0,94175.0,0.237576]
[1740434352717,0.01454085,94179.0,94175.0,0.237576]
[1740434352997,0.01454085,94179.0,94177.0,0.00382857]
[1740434353230,0.01454085,94181.0,94177.0,0.00182857]
[1740434353472,0.01554085,94181.0,94177.0,0.00382857]
[1740434353703,0.01454085,94179.0,94177.0,0.00382857]
[1740434353942,0.00795075,94178.0,94177.0,0.00382857]
[1740434354601,0.00795075,94178.0,94177.0,0.16110257]
[1740434355403,0.00895075,94178.0,94177.0,0.16110257]
[1740434356042,0.00895075,94178.0,94177.0,0.00182857]
[1740434356286,0.01275504,94178.0,94177.0,0.00182857]
[1740434356459,0.01275504,94178.0,94177.0,0.16110257]
[1740434356733,0.01375504,94178.0,94177.0,0.16110257]
[1740434357232,0.01375504,94178.0,94177.0,0.00182857]
[1740434359625,0.17302704,94178.0,94177.0,0.00182857]
[1740434359860,0.01375504,94178.0,94177.0,0.00182857]
[1740434361445,0.01708052,94178.0,94177.0,0.00182857]
[1740434361684,0.01763268,94183.0,94177.0,0.00182857]
[1740434361935,0.00380429,94178.0,94177.0,0.00182857]
[1740434362172,0.159267,94181.0,94177.0,0.00182857]
[1740434362416,0.00380429,94178.0,94177.0,0.00182857]
[1740434362586,0.15,94184.0,94177.0,0.00182857]
[1740434362785,0.00380429,94178.0,94177.0,0.00182857]
[1740434363027,0.15,94188.0,94177.0,0.00182857]
[1740434363247,0.159268,94181.0,94177.0,0.00182857]
[1740434363442,0.00380429,94180.0,94177.0,0.00182857]
[1740434363657,0.160272,94178.0,94177.0,0.00182857]
[1740434363850,0.001,94178.0,94177.0,0.00182857]
[1740434364049,0.00380429,94178.0,94177.0,0.00182857]
[1740434364252,0.159269,94181.0,94177.0,0.00182857]
[1740434364458,0.159272,94178.0,94177.0,0.00182857]
[1740434364894,0.16307629,94178.0,94177.0,0.00182857]
[1740434365100,0.16307629,94178.0,94177.0,0.00282857]
[1740434365291,0.16307629,94178.0,94177.0,0.00182857]
[1740434365439,0.16407629,94178.0,94177.0,0.00282857]
[1740434366171,0.16407629,94178.0,94177.0,0.00382857]
[1740434366398,0.16307629,94178.0,94177.0,0.00282857]
[1740434366620,0.16307629,94178.0,94177.0,0.00382857]
[1740434376862,0.16307629,94178.0,94177.0,0.00282857]
[1740434377099,0.16307629,94178.0,94177.0,0.00182857]
[1740434377340,0.32761714,94178.0,94177.0,0.00182857]
[1740434377550,0.52854278,94178.0,94177.0,5.7e-07]
[1740434377741,0.85504278,94178.0,94177.0,5.7e-07]
[1740434378193,0.75676283,94178.0,94177.0,5.7e-07]
[1740434378794,0.75776283,94178.0,94177.0,5.7e-07]
[1740434379246,0.84546283,94178.0,94177.0,5.7e-07]
[1740434379452,0.40212485,94171.0,94170.0,1.7e-07]
[1740434379630,0.60741623,94171.0,94170.0,1.7e-07]
[1740434379869,0.61119547,94171.0,94170.0,1.7e-07]
[1740434380302,0.51794978,94171.0,94170.0,1.7e-07]
[1740434380510,0.33700409,94171.0,94170.0,1.7e-07]
[1740434380724,0.32760409,94171.0,94170.0,1.7e-07]
[1740434381194,0.65510409,94171.0,94170.0,1.7e-07]
[1740434381623,0.65810409,94171.0,94170.0,1.7e-07]
[1740434384192,0.49882009,94171.0,94170.0,1.7e-07]
[1740434384621,0.65810409,94171.0,94170.0,1.7e-07]
[1740434385265,0.65510409,94171.0,94170.0,1.7e-07]
[1740434386102,0.65410409,94171.0,94170.0,1.7e-07]
[1740434386540,0.48127924,94171.0,94170.0,1.7e-07]
[1740434386962,0.31406324,94171.0,94170.0,1.7e-07]
[1740434387741,0.15377924,94171.0,94170.0,1.7e-07]
[1740434387952,0.31306324,94171.0,94170.0,1.7e-07]
[1740434388158,0.15477924,94171.0,94170.0,1.7e-07]
[1740434389998,0.31406324,94171.0,94170.0,1.7e-07]
[1740434390379,0.15477924,94171.0,94170.0,0.15928617]
[1740434390628,0.31406324,94171.0,94170.0,1.7e-07]
[1740434392333,0.15477924,94171.0,94170.0,1.7e-07]
[1740434392602,0.15477924,94171.0,94170.0,0.15928617]
[1740434392835,0.15477924,94171.0,94170.0,1.7e-07]
[1740434393020,0.151,94171.0,94170.0,1.7e-07]
[1740434393268,0.31448135,94171.0,94170.0,1.7e-07]
[1740434397069,0.15519735,94171.0,94170.0,1.7e-07]
[1740434397566,0.31448135,94171.0,94170.0,1.7e-07]
[1740434398033,0.1632478,94171.0,94170.0,1.7e-07]
[1740434398554,0.0039638,94171.0,94170.0,1.7e-07]
[1740434399011,0.212369,94176.0,94170.0,1.7e-07]
[1740434399234,0.0039638,94171.0,94170.0,1.7e-07]
[1740434399463,0.01454085,94176.0,94170.0,1.7e-07]
[1740434399693,0.1632478,94171.0,94170.0,1.7e-07]
[1740434400014,0.0039638,94171.0,94170.0,1.7e-07]
[1740434400237,0.1632478,94171.0,94170.0,1.7e-07]
[1740434400476,0.0039638,94171.0,94170.0,1.7e-07]
[1740434401412,0.0049638,94171.0,94170.0,1.7e-07]
[1740434402332,0.0049638,94171.0,94170.0,0.26193186]
[1740434402572,0.0049638,94171.0,94170.0,0.38993186]
[1740434404904,0.0039638,94171.0,94170.0,0.38993186]
[1740434406451,0.0039638,94171.0,94170.0,0.39093186]
[1740434406883,0.0039638,94171.0,94170.0,0.38993186]
[1740434407123,0.0049638,94171.0,94170.0,0.39093186]
[1740434407854,0.0059638,94171.0,94170.0,0.39193186]
[1740434409735,0.007662,94171.0,94170.0,0.39193186]
[1740434411414,0.166946,94171.0,94170.0,0.00200017]
[1740434412140,0.18048685,94171.0,94170.0,0.00100017]
[1740434412831,0.60802297,94171.0,94170.0,0.00100017]
[1740434413082,0.65392297,94171.0,94170.0,0.00100017]
[1740434413333,0.65292297,94171.0,94170.0,1.7e-07]
[1740434413579,0.32383985,94162.0,94161.0,7.7e-07]
[1740434413844,0.15931,94156.0,94155.0,0.0016996]
[1740434414105,0.32385085,94156.0,94155.0,0.0016996]
[1740434414362,0.42649654,94156.0,94155.0,6e-07]
[1740434414606,0.17386085,94150.0,94149.0,7e-07]
[1740434414861,0.38889963,94150.0,94149.0,7e-07]
[1740434415124,0.49154532,94150.0,94149.0,7e-07]
[1740434415380,0.78725223,94150.0,94149.0,7e-07]
[1740434415905,0.95725223,94150.0,94149.0,7e-07]
[1740434416147,1.00803733,94150.0,94149.0,7e-07]
[1740434416392,0.97725223,94150.0,94149.0,7e-07]
[1740434416631,0.15936,94126.0,94125.0,0.0008501]
[1740434417360,0.1626878,94126.0,94125.0,0.0008501]
[1740434417574,0.16605538,94126.0,94125.0,0.0008501]
[1740434418018,0.1971657,94126.0,94125.0,0.0018501]
[1740434418235,0.1981657,94126.0,94125.0,0.0018501]
[1740434419576,0.18362485,94126.0,94125.0,0.0018501]
[1740434421965,0.18029705,94126.0,94125.0,0.0018501]
[1740434423239,0.1948379,94126.0,94125.0,0.0018501]
[1740434424494,0.29748359,94126.0,94125.0,0.0018501]
[1740434425655,0.1948379,94126.0,94125.0,0.0018501]
[1740434426289,0.02093705,94126.0,94125.0,0.0018501]
[1740434426501,0.00436758,94126.0,94125.0,0.0018501]
[1740434426919,0.18052826,94126.0,94125.0,0.0018501]
[1740434427137,0.00436758,94126.0,94125.0,0.0018501]
[1740434427371,0.16372758,94126.0,94125.0,0.0018501]
[1740434427586,0.27144223,94126.0,94125.0,0.0018501]
[1740434427799,0.28598308,94126.0,94125.0,0.0018501]
[1740434428009,0.19446542,94126.0,94125.0,0.0018501]
[1740434428679,0.159372,94119.0,94118.0,0.0007032]
[1740434429110,0.16269437,94119.0,94118.0,0.0007032]
[1740434429554,0.15269437,94119.0,94118.0,0.0007032]
[1740434429972,0.16723522,94119.0,94118.0,0.0007032]
[1740434430831,0.25729514,94119.0,94118.0,0.0007032]
[1740434432047,0.25929514,94119.0,94118.0,0.0007032]
[1740434432277,0.17721148,94119.0,94118.0,0.0007032]
[1740434432487,0.17521148,94119.0,94118.0,0.0007032]
[1740434432695,0.18221148,94119.0,94118.0,0.0007032]
[1740434433343,0.18721148,94119.0,94118.0,0.0007032]
[1740434433982,0.01532237,94119.0,94118.0,0.0007032]
[1740434434715,0.01532237,94119.0,94118.0,0.0504032]
[1740434434926,0.005,94119.0,94118.0,0.0504032]
[1740434435383,0.01031902,94119.0,94118.0,0.0504032]
[1740434435602,0.00831902,94119.0,94118.0,0.0504032]
[1740434435817,0.00331902,94119.0,94118.0,0.2097772]
[1740434436249,0.159359,94127.0,94118.0,0.0504032]
[1740434436455,0.05071294,94145.0,94118.0,0.0504032]
[1740434436673,0.15,94144.0,94118.0,0.0504032]
[1740434436889,0.159358,94128.0,94118.0,0.0504032]
[1740434437113,0.001,94119.0,94118.0,0.0504032]
[1740434437543,0.01501423,94131.0,94118.0,0.0504032]
[1740434437935,0.00325722,94130.0,94118.0,0.0504032]
[1740434438371,0.00325722,94130.0,94129.0,0.159355]
[1740434438580,0.09922724,94142.0,94134.0,0.159347]
[1740434438782,0.09922724,94142.0,94129.0,0.10264569]
[1740434438783,0.09522724,94142.0,94135.0,0.0762]
[1740434438997,0.09194085,94162.0,94135.0,0.0762]
[1740434438998,0.00310001,94141.0,94135.0,0.0762]
[1740434439469,0.0016986,94150.0,94135.0,0.0752]
[1740434439734,0.004,94142.0,94135.0,0.0752]
[1740434439974,0.0016986,94150.0,94135.0,0.0752]
[1740434440215,0.01559436,94146.0,94129.0,0.10264569]
[1740434440445,0.159338,94140.0,94131.0,0.159352]
[1740434441169,0.00310001,94139.0,94131.0,0.159352]
[1740434441389,0.00310001,94139.0,94132.0,0.15935]
[1740434441638,0.00310001,94139.0,94130.0,0.10264569]
[1740434441880,0.159337,94140.0,94131.0,0.159352]
[1740434442111,0.00310001,94138.0,94131.0,0.159352]
[1740434442385,0.003,94139.0,94132.0,0.0816]
[1740434442623,0.00310001,94137.0,94132.0,0.0816]
[1740434442846,0.212446,94142.0,94132.0,0.0816]
[1740434443081,0.00310001,94136.0,94132.0,0.0816]
[1740434443308,0.003,94139.0,94132.0,0.0816]
[1740434443543,0.00310001,94135.0,94132.0,0.24095]
[1740434443779,0.159339,94139.0,94132.0,0.0816]
[1740434444010,0.00310001,94134.0,94133.0,0.159349]
[1740434444248,0.159334,94142.0,94133.0,0.159349]
[1740434444478,0.159335,94142.0,94133.0,0.159349]
[1740434444715,0.16243501,94141.0,94133.0,0.159349]
[1740434444978,0.00310001,94141.0,94132.0,0.0816]
[1740434445212,0.159342,94137.0,94132.0,0.0816]
[1740434445457,0.159342,94137.0,94132.0,0.0836]
[1740434445681,0.00310001,94136.0,94132.0,0.0836]
[1740434445898,0.16244401,94136.0,94132.0,0.0816]
[1740434446143,0.21246,94135.0,94132.0,0.0816]
[1740434446386,0.00310001,94136.0,94117.0,0.0772]
[1740434446645,0.159372,94119.0,94118.0,0.0007032]
[1740434447125,0.17391285,94119.0,94118.0,0.0007032]
[1740434447366,0.17701286,94119.0,94118.0,0.0007032]
[1740434448490,0.17701286,94119.0,94118.0,0.0027032]
[1740434448773,0.17901286,94119.0,94118.0,0.0027032]
[1740434449005,0.17901286,94119.0,94118.0,0.0007032]
[1740434449465,0.17901286,94119.0,94118.0,0.0027032]
[1740434449697,0.24773255,94119.0,94118.0,0.0027032]
[1740434450400,0.17901286,94119.0,94118.0,0.0027032]
[1740434452101,0.43165855,94119.0,94118.0,2e-07]
[1740434452802,0.159401,94102.0,94093.0,0.2]
[1740434452967,0.159401,94102.0,94101.0,0.00128345]
[1740434453418,0.16250101,94102.0,94101.0,0.00128345]
[1740434455497,0.17820414,94102.0,94101.0,0.00128345]
[1740434455723,0.4273235,94102.0,94101.0,0.00128345]
[1740434455955,0.42884499,94102.0,94101.0,4.5e-07]
[1740434456455,0.52849068,94102.0,94101.0,4.5e-07]
[1740434456686,0.53149068,94102.0,94101.0,4.5e-07]
[1740434457619,0.53149068,94102.0,94101.0,0.00084995]
[1740434458099,0.52849068,94102.0,94101.0,0.00084995]
[1740434458568,0.83894352,94102.0,94101.0,0.00084995]
[1740434458800,0.84194352,94102.0,94101.0,9.5e-07]
[1740434459039,0.67409552,94102.0,94101.0,9.5e-07]
[1740434459267,0.66509552,94102.0,94101.0,9.5e-07]
[1740434459501,0.67209552,94102.0,94101.0,9.5e-07]
[1740434459729,0.66509552,94102.0,94101.0,9.5e-07]
[1740434460744,0.67009552,94102.0,94101.0,9.5e-07]
[1740434460990,0.67009552,94102.0,94075.0,0.0008492]
[1740434460991,0.16454085,94101.0,94075.0,0.0008492]
[1740434461215,0.159445,94076.0,94075.0,0.00097895]
[1740434461677,0.1625173,94076.0,94075.0,0.00097895]
[1740434462187,0.8589423,94076.0,94075.0,0.00097895]
[1740434462423,0.1625173,94076.0,94075.0,0.00097895]
[1740434462697,0.1695173,94076.0,94075.0,0.00097895]
[1740434462916,0.1625173,94076.0,94075.0,0.00097895]
[1740434463147,0.19383737,94076.0,94075.0,0.00097895]
[1740434463624,0.42034137,94076.0,94075.0,0.00097895]
[1740434463857,0.56216437,94076.0,94075.0,0.00097895]
[1740434464136,0.49004437,94076.0,94075.0,0.00097895]
[1740434464379,0.59469006,94076.0,94075.0,0.00097895]
[1740434464623,0.74269006,94076.0,94075.0,0.00097895]
[1740434465121,0.74469006,94076.0,94075.0,0.00097895]
[1740434465373,0.44648306,94076.0,94075.0,0.00097895]
[1740434465614,2.03606006,94076.0,94075.0,0.00097895]
[1740434465851,2.02906006,94076.0,94075.0,0.00097895]
[1740434466093,0.159479,94056.0,94055.0,0.01323178]
[1740434466325,0.159479,94056.0,94055.0,0.01336149]
[1740434466589,0.1625185,94056.0,94055.0,0.01336149]
[1740434467792,0.32332699,94056.0,94055.0,0.01336149]
[1740434468022,0.32332699,94056.0,94054.0,6.9e-07]
[1740434468023,0.309481,94055.0,94054.0,6.9e-07]
[1740434468236,0.309481,94055.0,94033.0,7e-05]
[1740434468237,0.159516,94034.0,94033.0,7e-05]
[1740434468895,0.41519652,94034.0,94033.0,7e-05]
[1740434469579,0.41852688,94034.0,94033.0,7e-05]
[1740434470241,0.15,94030.0,94007.0,0.04394143]
[1740434470479,0.212721,94020.0,94009.0,0.0001299]
[1740434470702,0.212702,94028.0,94009.0,0.0001299]
[1740434470922,0.159543,94019.0,94009.0,0.0001299]
[1740434471144,0.159536,94023.0,94010.0,0.212743]
[1740434471366,0.00301792,94018.0,94013.0,0.15955]
[1740434471618,0.003,94030.0,94009.0,0.0001299]
[1740434471874,0.003,94030.0,94018.0,0.212724]
[1740434472122,0.00301792,94029.0,94009.0,0.08528656]
[1740434472353,0.159526,94028.0,94016.0,0.159546]
[1740434472610,0.02,94058.0,94010.0,0.0784]
[1740434472859,0.0696,94064.0,94026.0,0.15953]
[1740434472860,0.00301792,94027.0,94026.0,0.15953]
[1740434473103,0.212668,94044.0,94016.0,0.212728]
[1740434473349,0.15951,94038.0,94017.0,0.10264569]
[1740434473595,0.159492,94049.0,94027.0,0.0483]
[1740434473838,0.00301792,94037.0,94029.0,0.2127]
[1740434474082,0.10597677,94055.0,94030.0,0.18104569]
[1740434474083,0.00333108,94055.0,94030.0,0.18104569]
[1740434474313,0.00333108,94055.0,94031.0,0.01454085]
[1740434474552,0.00333108,94048.0,94047.0,0.159494]
[1740434475295,0.00333108,94048.0,94047.0,0.38653969]
[1740434475574,0.16282408,94048.0,94047.0,0.10214085]
[1740434475817,0.159493,94048.0,94047.0,0.10214085]
[1740434476100,0.001,94055.0,94047.0,0.10214085]
[1740434476369,0.212643,94054.0,94032.0,0.0494]
[1740434476609,0.159505,94041.0,94032.0,0.262091]
[1740434476863,0.212623,94063.0,94032.0,0.0494]
[1740434477113,0.001,94048.0,94037.0,0.159511]
[1740434477383,0.001,94048.0,94036.0,0.212684]
[1740434477634,0.15,94066.0,94037.0,0.10264569]
[1740434477884,0.001,94041.0,94040.0,0.159506]
[1740434478427,0.00333048,94062.0,94037.0,0.10264569]
[1740434478683,0.001,94048.0,94034.0,0.083]
[1740434478928,0.159515,94035.0,94034.0,0.083]
[1740434479276,0.159515,94035.0,94032.0,0.0494]
[1740434479277,0.159518,94033.0,94032.0,0.0494]
[1740434479456,0.001,94048.0,94032.0,0.0494]
[1740434479730,0.16237362,94035.0,94032.0,0.0494]
[1740434479977,0.159516,94035.0,94032.0,0.0494]
[1740434480253,0.159518,94033.0,94032.0,0.0494]
[1740434480750,0.16237662,94033.0,94032.0,0.0494]
[1740434480989,0.16237662,94033.0,94019.0,0.08515666]
[1740434480990,0.159538,94021.0,94020.0,0.0465]
[1740434481728,0.15954,94020.0,94019.0,0.0001299]
[1740434482492,0.16239862,94020.0,94019.0,0.0001299]
[1740434483752,0.1657291,94020.0,94019.0,0.0001299]
[1740434484006,0.1667291,94020.0,94019.0,0.0001299]
[1740434487457,0.1657291,94020.0,94019.0,0.0001299]
[1740434487939,0.159562,94007.0,94006.0,0.0008495]
[1740434488416,0.26220769,94007.0,94006.0,0.0008495]
[1740434488688,0.159572,94001.0,93977.0,0.0811]
[1740434488935,0.26221769,94001.0,93977.0,0.0811]
[1740434489185,0.41221769,94001.0,93976.0,0.0464]
[1740434489459,1.47008678,94001.0,94000.0,1e-06]
[1740434489721,0.159606,93981.0,93967.0,0.0755]
[1740434489987,0.15,93998.0,93967.0,0.07481446]
[1740434490210,0.15,93994.0,93961.0,0.0608601]
[1740434490429,0.15,93992.0,93961.0,0.0608601]
[1740434490659,0.15,93990.0,93961.0,0.0608601]
[1740434490880,0.15,93988.0,93961.0,0.0608601]
[1740434491098,0.25264569,93988.0,93962.0,0.212852]
[1740434491317,0.159617,93975.0,93963.0,0.159636]
[1740434491533,0.159618,93974.0,93961.0,0.22093238]
[1740434491761,0.159621,93973.0,93961.0,0.22093238]
[1740434491979,0.159625,93970.0,93961.0,0.06129338]
[1740434492199,0.00284909,93973.0,93961.0,0.06129338]
[1740434492415,0.15,93979.0,93961.0,0.06129338]
[1740434492630,0.00284909,93972.0,93963.0,0.159637]
[1740434492850,0.212821,93976.0,93963.0,0.0752]
[1740434493074,0.00333048,93969.0,93967.0,0.159628]
[1740434493294,0.00333048,93969.0,93968.0,0.27681454]
[1740434494400,0.00333048,93969.0,93968.0,0.11718654]
[1740434494623,0.00333048,93991.0,93968.0,0.10264569]
[1740434494875,0.21611748,93991.0,93970.0,0.159624]
[1740434495114,0.159602,93984.0,93968.0,0.10264569]
[1740434495348,0.159602,93984.0,93973.0,0.159619]
[1740434495577,0.159605,93982.0,93971.0,0.159622]
[1740434495803,0.001,93969.0,93968.0,0.17416885]
[1740434496297,0.00333048,93990.0,93963.0,0.0752]
[1740434496532,0.001,93984.0,93964.0,0.01603052]
[1740434496790,0.001,93984.0,93979.0,0.159608]
[1740434497038,0.159601,93985.0,93974.0,0.159618]
[1740434497276,0.001,93969.0,93965.0,0.01454085]
[1740434497504,0.001,93969.0,93949.0,0.08515666]
[1740434497505,0.159639,93962.0,93954.0,0.081]
[1740434497993,0.001,93969.0,93954.0,0.081]
[1740434498266,0.00283118,93962.0,93961.0,0.22178368]
[1740434498500,0.159625,93971.0,93961.0,0.06214368]
[1740434498955,0.212838,93968.0,93961.0,0.06214368]
[1740434499188,0.00283118,93970.0,93961.0,0.06214368]
[1740434499428,0.212822,93975.0,93961.0,0.06214368]
[1740434499685,0.00282544,93969.0,93961.0,0.06214368]
[1740434499922,0.00333048,93967.0,93961.0,0.06214368]
[1740434500180,0.159639,93962.0,93961.0,0.01544368]
[1740434500414,1.11304869,93962.0,93961.0,0.01544368]
[1740434500646,0.63511561,93962.0,93961.0,0.01544368]
[1740434500851,0.65511561,93962.0,93961.0,6.8e-07]
[1740434501061,0.65511561,93962.0,93939.0,0.0008499]
[1740434501062,0.309676,93940.0,93939.0,0.0008499]
[1740434501280,0.309676,93940.0,93939.0,0.00095602]
[1740434501498,0.31248071,93940.0,93939.0,0.00095602]
[1740434502409,0.4151264,93940.0,93939.0,0.00095602]
[1740434503070,0.4161264,93940.0,93939.0,0.00095602]
[1740434503295,0.31348071,93940.0,93939.0,0.00095602]
[1740434503520,0.31681119,93940.0,93939.0,0.00095602]
[1740434503987,0.39107141,93940.0,93939.0,0.00095602]
[1740434504678,0.4937171,93940.0,93939.0,0.00095602]
[1740434504897,0.159689,93932.0,93908.0,0.15973]
[1740434505130,0.159689,93932.0,93906.0,7e-05]
[1740434505362,0.31248596,93932.0,93906.0,7e-05]
[1740434505885,0.31248596,93932.0,93910.0,0.159727]
[1740434506143,0.31348596,93932.0,93906.0,7e-05]
[1740434506375,0.31348596,93932.0,93913.0,0.159722]
[1740434506612,0.51332022,93932.0,93906.0,7e-05]
[1740434506843,0.69238822,93932.0,93906.0,7e-05]
[1740434507093,0.64146622,93932.0,93906.0,7e-05]
[1740434507597,0.159723,93913.0,93906.0,7e-05]
[1740434507850,0.25264569,93931.0,93906.0,7e-05]
[1740434508093,0.159726,93911.0,93906.0,7e-05]
[1740434508339,0.15,93930.0,93906.0,7e-05]
[1740434508340,0.15,93923.0,93906.0,7e-05]
[1740434508588,0.00279696,93910.0,93906.0,7e-05]
[1740434508873,0.212942,93922.0,93906.0,7e-05]
[1740434509146,0.00277702,93909.0,93906.0,7e-05]
[1740434509380,0.159723,93913.0,93906.0,7e-05]
[1740434509689,0.0027709,93908.0,93906.0,7e-05]
[1740434510144,0.212959,93915.0,93906.0,7e-05]
[1740434510404,0.0027709,93907.0,93906.0,7e-05]
[1740434510649,0.159717,93916.0,93906.0,7e-05]
[1740434510864,60.0,94549.0,93906.0,7e-05]
[1740434510865,0.0027709,93907.0,93906.0,7e-05]
[1740434511113,0.00333048,93914.0,93906.0,7e-05]
[1740434512316,0.159732,93907.0,93906.0,7e-05]
[1740434512584,0.3683987,93907.0,93906.0,7e-05]
[1740434512843,0.41514859,93907.0,93906.0,7e-05]
[1740434513553,0.41847907,93907.0,93906.0,7e-05]
[1740434514264,0.159785,93876.0,93875.0,0.0458]
[1740434514508,0.159785,93876.0,93875.0,0.04612558]
[1740434514982,0.16253031,93876.0,93875.0,0.00043281]
[1740434515453,0.16586079,93876.0,93875.0,0.00043281]
[1740434515664,0.159785,93876.0,93875.0,0.00043281]
[1740434515890,0.16236751,93876.0,93875.0,0.00043281]
[1740434516132,0.16336751,93876.0,93875.0,0.00043281]
[1740434516582,0.00258251,93876.0,93875.0,0.00043281]
[1740434517071,0.15,93885.0,93875.0,0.00128411]
[1740434517366,0.00258251,93876.0,93875.0,0.00128411]
[1740434517572,0.159785,93876.0,93875.0,0.00128411]
[1740434517812,0.213039,93880.0,93875.0,0.00128411]
[1740434518059,0.16236751,93876.0,93875.0,0.00128411]
[1740434519640,0.22131256,93876.0,93875.0,0.00128411]
[1740434519866,0.47395825,93876.0,93875.0,0.00128411]
[1740434520115,0.8807782,93876.0,93875.0,0.00128411]
[1740434520829,0.309797,93869.0,93868.0,0.01473268]
[1740434521112,0.55160469,93869.0,93868.0,0.01486242]
[1740434521339,0.41501447,93869.0,93868.0,0.01486242]
[1740434521810,0.10521747,93869.0,93868.0,0.01486242]
[1740434522036,0.00257178,93869.0,93868.0,0.01486242]
[1740434522262,0.16236878,93869.0,93868.0,0.01486242]
[1740434522734,0.00657178,93869.0,93868.0,0.01486242]
[1740434523233,0.00257178,93869.0,93868.0,0.01486242]
[1740434523485,0.159755,93894.0,93875.0,0.159785]
[1740434523701,0.15,93892.0,93875.0,0.159786]
[1740434523926,0.10264569,93892.0,93873.0,0.0792]
[1740434524152,0.00257416,93891.0,93873.0,0.292252]
[1740434524388,0.00257416,93891.0,93879.0,0.0455]
[1740434524625,0.01932512,93900.0,93879.0,0.0455]
[1740434524846,0.23948,93918.0,93879.0,0.0455]
[1740434525098,0.17897477,93901.0,93885.0,0.159768]
[1740434525326,0.212985,93904.0,93887.0,0.159766]
[1740434525327,0.159738,93904.0,93887.0,0.159766]